bitfinex/quotes_ETHUSD_20230703
["timestamp","ask_amount","ask_price","bid_price","bid_amount"]
[1688400490024,0.0740703,1961.9,1961.5,12.74532]
[1688400491629,6.19328057,1962.2,1961.5,12.74532]
[1688400491823,1.09671057,1962.2,1961.5,15.30410816]
[1688400492022,2.55878816,1962.1,1961.6,3.0229099]
[1688400492222,5.09685,1962.0,1961.7,10.19511]
[1688400492550,5.09685,1962.0,1961.7,5.0975]
[1688400492788,5.09685,1962.0,1961.7,5.0976]
[1688400493056,5.09685,1962.0,1961.7,10.19521]
[1688400493238,7.65545816,1962.1,1961.7,12.74401]
[1688400493411,2.55878816,1962.1,1961.7,12.74401]
[1688400493951,6.19304057,1962.2,1961.7,12.74401]
[1688400494112,6.19306057,1962.2,1961.7,12.74401]
[1688400494320,3.17809422,1962.1,1961.6,5.09774]
[1688400494547,10.19386,1962.0,1961.6,10.19561]
[1688400494757,2.55878816,1961.9,1961.4,3.0]
[1688400494961,12.74363,1961.8,1961.3,10.19696]
[1688400495249,15.30241816,1961.8,1961.3,5.09845]
[1688400495452,16.83265998,1961.8,1961.3,5.09845]
[1688400495650,2.55878816,1961.8,1961.3,13.24642]
[1688400495962,2.55878816,1961.8,1961.3,12.74642]
[1688400496163,2.55878816,1961.8,1961.3,13.24642]
[1688400496326,2.55878816,1961.8,1961.5,10.19616]
[1688400496576,2.55878816,1961.8,1961.5,12.74522]
[1688400497257,2.55878816,1961.7,1961.4,10.19654]
[1688400497416,18.08367,1961.6,1961.2,5.09884]
[1688400497758,7.89778816,1961.3,1960.8,5.09983]
[1688400497956,12.7476,1961.2,1960.7,5.1001]
[1688400498160,2.54925,1961.4,1960.8,10.1999]
[1688400498161,2.55878816,1961.1,1960.8,10.1999]
[1688400498457,0.25587882,1961.0,1960.7,5.10008]
[1688400498615,12.75816816,1960.9,1960.6,5.10031]
[1688400498825,7.65847816,1960.9,1960.7,5.10021]
[1688400499017,15.30800816,1960.9,1960.5,5.1006]
[1688400499231,15.30800816,1960.9,1960.4,0.01642068]
[1688400499453,9.42858898,1960.8,1960.2,5.10146]
[1688400499650,12.75105,1960.7,1960.1,10.20332]
[1688400499950,2.55878816,1960.6,1960.1,5.10165]
[1688400500270,10.20172,1960.5,1960.1,10.20343]
[1688400500427,2.55878816,1960.4,1960.1,10.20343]
[1688400500774,7.65980816,1960.4,1960.1,12.75432]
[1688400500929,2.55878816,1960.4,1960.1,12.75432]
[1688400501313,48.6,1962.7,1960.1,14.529752]
[1688400501314,1.02081,1961.1,1960.1,14.529752]
[1688400501515,1.02081,1961.1,1960.4,12.75222]
[1688400501516,7.65822816,1961.0,1960.4,12.75222]
[1688400501720,12.75781816,1961.0,1960.4,12.75222]
[1688400502546,7.65822816,1961.0,1960.4,12.75222]
[1688400502756,2.55878816,1961.0,1960.4,12.75222]
[1688400502956,2.55878816,1961.0,1960.5,3.01641985]
[1688400503167,2.55878816,1961.0,1960.6,12.75085]
[1688400503966,7.65833816,1961.0,1960.6,10.20068]
[1688400504145,12.75788816,1961.0,1960.6,5.10034]
[1688400504647,12.75788816,1961.0,1960.6,10.20081]
[1688400504827,1.27578882,1960.9,1960.6,10.20081]
[1688400505029,2.55878816,1960.8,1960.2,5.55073]
[1688400505252,7.65889816,1960.8,1960.4,5.10075]
[1688400505549,12.75900816,1960.8,1960.4,5.10075]
[1688400505727,5.339,1960.7,1960.3,10.20239]
[1688400505927,2.55878816,1960.6,1960.3,10.20239]
[1688400506116,2.55878816,1960.6,1960.3,12.75302]
[1688400506314,2.55878816,1960.6,1960.3,12.76944152]
[1688400506512,10.19967,1960.9,1960.3,12.76944152]
[1688400506757,2.55878816,1960.9,1960.3,12.76944152]
[1688400507061,2.55878816,1960.9,1960.3,14.60145367]
[1688400507261,5.09877,1961.3,1960.3,14.60145367]
[1688400507420,2.55878816,1960.9,1960.4,3.0]
[1688400507618,5.09877,1961.3,1960.5,15.3018]
[1688400507820,2.55878816,1961.2,1960.5,15.3018]
[1688400508020,0.026,1961.7,1960.6,12.42796816]
[1688400508358,10.19437,1961.9,1960.9,15.29886]
[1688400508522,10.19437,1961.9,1961.0,3.0]
[1688400508716,12.74291,1961.9,1961.2,12.74684]
[1688400508917,12.74452,1961.7,1961.2,5.09873]
[1688400509159,5.09816,1961.5,1961.2,10.19764]
[1688400509347,10.19632,1961.5,1961.2,5.09873]
[1688400509548,1.274291,1961.8,1961.2,5.09873]
[1688400509750,2.54883,1961.7,1961.2,5.09873]
[1688400509947,10.19648,1961.5,1961.1,5.09899]
[1688400510147,18.08454,1961.5,1961.1,5.09899]
[1688400510346,20.6336,1961.5,1960.9,5.09952]
[1688400510547,20.6336,1961.5,1960.8,5.09995]
[1688400510859,8.17168,1961.7,1960.8,5.09995]
[1688400510860,5.0989,1961.3,1960.8,12.74987]
[1688400511019,10.4375,1961.4,1960.9,0.01641649]
[1688400511223,10.4375,1961.4,1961.0,10.1986]
[1688400511224,15.53611,1961.4,1961.0,10.1986]
[1688400512063,7.89778816,1961.3,1960.5,0.40053156]
[1688400512271,5.339,1961.0,1960.6,5.10036]
[1688400512570,18.62224,1960.9,1959.9,2.55112]
[1688400512880,18.62224,1960.9,1960.2,10.203]
[1688400512881,2.55878816,1960.8,1960.2,10.203]
[1688400513046,2.55878816,1960.8,1960.2,12.75376]
[1688400513047,10.20065,1960.7,1960.2,12.75376]
[1688400513390,2.55878816,1960.6,1960.2,12.75376]
[1688400513548,2.55878816,1960.6,1960.1,5.11806319]
[1688400513549,7.65925816,1960.6,1960.1,5.11806319]
[1688400513753,7.65925816,1960.6,1960.2,10.20299]
[1688400513954,14.03568798,1960.6,1960.2,10.20299]
[1688400514161,8.93521798,1960.6,1960.2,10.20299]
[1688400514492,8.93521798,1960.6,1960.2,12.75375]
[1688400514646,8.93521798,1960.6,1959.9,0.4176134]
[1688400514647,5.339,1960.2,1959.9,0.4176134]
[1688400514849,20.65223816,1960.1,1959.5,0.1]
[1688400515055,7.40422382,1960.0,1959.7,5.10282]
[1688400515254,2.55878816,1959.8,1959.7,10.20564]
[1688400515458,0.026,1960.5,1959.7,10.20564]
[1688400515459,2.57643,1960.5,1959.7,10.20564]
[1688400515659,5.10139,1960.3,1959.7,12.75705]
[1688400515833,2.55878816,1960.2,1959.7,12.75705]
[1688400516035,18.10112816,1960.2,1959.7,12.75705]
[1688400516264,1.81011282,1960.1,1959.7,12.75705]
[1688400516450,7.66086816,1960.0,1959.7,12.75705]
[1688400516775,12.76294816,1960.0,1959.6,5.10294]
[1688400516978,12.76294816,1960.0,1959.6,10.20602]
[1688400517151,20.65296816,1960.0,1959.5,0.1]
[1688400517356,7.40429682,1959.9,1959.5,0.1]
[1688400517556,12.76400816,1959.8,1959.5,0.1]
[1688400517744,5.339,1959.6,1959.5,0.1]
[1688400517943,20.65548816,1959.6,1958.6,5.20561]
[1688400518178,7.89778816,1959.2,1958.8,5.10511]
[1688400518343,15.31238,1959.1,1958.8,5.10505]
[1688400518536,12.76678816,1959.1,1958.7,0.01643493]
[1688400518763,9.67590519,1959.1,1959.0,12.8616]
[1688400519281,8.73000998,1959.1,1959.0,12.87803242]
[1688400519484,11.28879814,1959.1,1959.0,5.20464]
[1688400519841,11.28879814,1959.1,1959.0,0.1]
[1688400520191,11.28879814,1959.1,1959.0,5.20464]
[1688400520378,11.28879814,1959.1,1959.0,0.1]
[1688400520564,18.03247195,1959.1,1959.0,0.1]
[1688400520886,18.03247195,1959.1,1959.0,5.20464]
[1688400520887,11.28879814,1959.1,1959.0,5.20464]
[1688400521036,11.28879814,1959.1,1959.0,10.30928]
[1688400521687,8.73000998,1959.1,1959.0,12.8616]
[1688400521854,3.44551381,1959.1,1959.0,15.8616]
[1688400522180,5.10143,1960.3,1959.0,26.29782058]
[1688400522351,5.611573,1960.3,1959.1,6.10978206]
[1688400522550,10.713003,1960.3,1959.4,20.41387]
[1688400522771,2.54979,1961.0,1959.7,0.5]
[1688400522954,5.1,1960.8,1960.0,15.3055]
[1688400523278,2.54979,1961.0,1960.3,12.75287]
[1688400523279,5.09982,1960.9,1960.3,12.75287]
[1688400523438,5.09951,1961.0,1960.3,12.75287]
[1688400523439,10.19908,1961.0,1960.3,12.75287]
[1688400523643,10.19913,1961.0,1960.3,12.76929152]
[1688400523847,11.221643,1961.0,1960.3,12.76929152]
[1688400524054,13.771353,1961.0,1960.3,12.76929152]
[1688400524540,6.122023,1961.0,1960.3,12.76929152]
[1688400524737,1.022513,1961.0,1960.3,12.76929152]
[1688400524939,5.09928,1961.1,1960.3,12.76929152]
[1688400525150,0.026,1961.2,1960.3,12.76929152]
[1688400525452,2.55878816,1961.1,1960.6,12.75072]
[1688400525643,2.55878816,1960.9,1960.6,12.76713902]
[1688400525843,2.55878816,1960.9,1960.6,10.20058]
[1688400525844,7.89778816,1960.9,1960.6,10.20058]
[1688400526073,9.19752798,1960.9,1960.6,10.20058]
[1688400526274,3.85852798,1960.9,1960.6,10.20058]
[1688400526630,2.55878816,1960.9,1960.6,12.75081]
[1688400527085,2.4412,1961.3,1960.8,12.74937]
[1688400527386,2.55878816,1961.2,1960.8,12.74937]
[1688400527595,2.55878816,1961.2,1960.8,10.1995]
[1688400527596,2.55878816,1961.0,1960.8,10.1995]
[1688400527802,7.89778816,1960.9,1960.7,5.10019]
[1688400528096,8.44851698,1960.8,1960.6,5.10044]
[1688400528397,8.44851698,1960.8,1960.6,12.75114]
[1688400528398,2.55878816,1960.8,1960.6,12.75114]
[1688400529284,2.55878816,1960.7,1960.6,12.75114]
[1688400529457,2.55878816,1960.7,1960.6,10.20091]
[1688400529796,2.55878816,1960.7,1960.6,12.75114]
[1688400530999,4.99054,1961.3,1960.6,12.75114]
[1688400531000,5.09901,1961.2,1960.6,12.75114]
[1688400531172,2.55878816,1961.1,1960.7,0.01641817]
[1688400531371,2.55878816,1961.1,1960.8,15.29972]
[1688400531817,2.55878816,1961.1,1960.8,12.74975]
[1688400532807,2.55878816,1961.1,1960.9,0.01641649]
[1688400533013,2.55878816,1961.1,1961.0,12.74857]
[1688400533315,2.55878816,1961.1,1961.0,10.19886]
[1688400533697,2.55878816,1961.1,1961.0,12.74857]
[1688400534009,2.55878816,1961.1,1961.0,10.19886]
[1688400534233,2.55878816,1961.1,1961.0,5.09943]
[1688400534511,2.55878816,1961.1,1961.0,10.19886]
[1688400535870,5.09723,1961.9,1961.0,17.02507965]
[1688400536111,2.55878816,1961.8,1961.0,17.02507965]
[1688400536325,2.55878816,1961.8,1961.1,3.5]
[1688400536502,2.55878816,1961.8,1961.3,15.29588]
[1688400537169,2.4039,1961.9,1961.3,15.29588]
[1688400537370,4.96268816,1961.9,1961.3,17.335347]
[1688400537665,2.55878816,1961.9,1961.5,15.294]
[1688400538093,2.55878816,1961.9,1961.7,12.74402]
[1688400538514,5.09615,1962.3,1961.7,12.74402]
[1688400538676,2.55878816,1962.2,1961.7,13.24402]
[1688400538879,2.55878816,1962.2,1961.9,12.7426]
[1688400539528,2.55878816,1962.2,1962.0,0.0164073]
[1688400539892,2.55878816,1962.2,1962.1,12.74145]
[1688400541140,2.55878816,1962.2,1962.1,15.74145]
[1688400541423,1.11881827,1962.4,1962.1,15.74145]
[1688400541657,1.11881827,1962.4,1962.3,15.28818]
[1688400542325,1.11881827,1962.4,1962.3,18.28818]
[1688400543129,1.11881827,1962.4,1962.3,18.30458478]
[1688400544188,2.5,1962.5,1962.4,0.03506239]
[1688400544422,2.5,1962.5,1962.4,15.77456239]
[1688400544588,2.5,1962.5,1962.4,18.96806811]
[1688400545125,2.5,1962.5,1962.4,12.77456239]
[1688400545560,2.5,1962.5,1962.4,12.7395]
[1688400546601,2.5,1962.5,1962.4,15.77864022]
[1688400546867,2.5,1962.5,1962.4,15.75590395]
[1688400547012,5.0928,1963.6,1962.5,0.5]
[1688400547207,2.55878816,1963.5,1962.8,20.37872]
[1688400547753,2.55878816,1963.5,1962.9,3.0]
[1688400548045,2.55878816,1963.5,1963.0,20.37618]
[1688400548253,2.5216,1963.8,1963.0,20.37618]
[1688400548560,7.65123816,1963.7,1963.2,15.28054]
[1688400548710,9.17775298,1963.7,1963.2,15.28054]
[1688400548908,4.08530298,1963.7,1963.2,15.28054]
[1688400549405,9.17777298,1963.7,1963.2,12.73377]
[1688400550017,5.09372,1963.2,1962.8,5.09463]
[1688400550221,2.55878816,1963.1,1962.8,10.18939]
[1688400550446,2.55878816,1963.1,1962.8,12.73677]
[1688400551506,2.55878816,1963.1,1962.9,3.0]
[1688400551753,2.55878816,1963.1,1963.0,10.18848]
[1688400551948,2.55878816,1963.1,1963.0,12.7356]
[1688400552851,5.339,1963.0,1962.7,5.09498]
[1688400553058,5.339,1963.0,1962.3,2.54796]
[1688400553059,2.55878816,1962.8,1962.3,2.54796]
[1688400553374,7.65367816,1962.8,1962.4,10.19138]
[1688400553658,12.74856816,1962.8,1962.4,10.19138]
[1688400553821,14.27814998,1962.8,1962.4,10.19138]
[1688400554020,19.61714998,1962.8,1962.4,10.19138]
[1688400554562,2.55878816,1962.6,1962.3,10.19178]
[1688400554714,5.09554,1962.5,1962.3,5.09589]
[1688400555059,2.55878816,1962.5,1962.3,10.19195]
[1688400555357,2.55878816,1962.5,1962.3,12.73998]
[1688400555515,0.25587882,1963.1,1962.3,14.513978]
[1688400555715,6.98223,1963.3,1962.3,14.513978]
[1688400555950,6.98223,1963.3,1962.5,15.78598]
[1688400556168,2.55878816,1963.3,1962.6,3.0]
[1688400556459,2.55878816,1963.3,1962.8,15.28418]
[1688400556706,2.55878816,1963.3,1963.0,12.73547]
[1688400557614,1.52651482,1963.7,1963.0,14.563729]
[1688400557856,2.55878816,1963.6,1963.2,12.73397]
[1688400558823,2.645,1963.8,1963.3,0.01639643]
[1688400559024,2.645,1963.8,1963.3,3.01639643]
[1688400559025,2.55878816,1963.7,1963.3,3.01639643]
[1688400559325,2.55878816,1963.7,1963.3,5.09328]
[1688400559326,15.28984816,1963.7,1963.3,5.09328]
[1688400559663,15.28984816,1963.7,1963.3,10.18674]
[1688400559664,7.65120816,1963.7,1963.3,10.18674]
[1688400559824,9.44466698,1963.7,1963.3,12.73347]
[1688400560461,4.35224698,1963.7,1963.3,12.73347]
[1688400560834,4.35224698,1963.7,1963.3,5.09328]
[1688400561034,15.28988816,1963.7,1963.2,5.0936]
[1688400561550,15.28988816,1963.7,1963.2,10.18732]
[1688400561752,20.62888816,1963.7,1963.2,10.18732]
[1688400562522,20.62888816,1963.7,1963.0,5.5471]
[1688400562523,7.89778816,1963.5,1963.0,2.5471]
[1688400562722,7.89778816,1963.5,1962.4,0.5]
[1688400562723,5.09364,1963.3,1962.4,0.5]
[1688400562959,2.55878816,1963.3,1963.0,12.7356]
[1688400563141,5.09296,1963.5,1963.0,12.7356]
[1688400563545,12.74480816,1963.5,1963.0,12.7356]
[1688400564073,0.0688837,1963.7,1963.1,3.0]
[1688400564283,2.62767186,1963.7,1963.2,12.75016726]
[1688400564566,7.72014186,1963.7,1963.2,12.75016726]
[1688400565451,7.72014186,1963.7,1963.2,10.18702]
[1688400565452,5.09299,1963.5,1963.2,10.18702]
[1688400565652,2.55878816,1963.4,1963.2,5.09351]
[1688400565848,8.92649498,1963.4,1963.1,3.0]
[1688400566163,3.83326498,1963.4,1963.1,3.0]
[1688400566670,8.93534018,1963.4,1963.1,5.09395]
[1688400567026,3.84201018,1963.4,1963.1,10.18793]
[1688400567654,3.84201018,1963.4,1963.1,12.73492]
[1688400567976,0.0087452,1963.4,1963.1,12.73492]
[1688400568581,0.0087452,1963.4,1963.1,12.7513181]
[1688400568736,0.0087452,1963.4,1963.3,12.73365]
[1688400568937,0.0087452,1963.4,1963.3,15.73365]
[1688400570082,0.0087452,1963.4,1963.3,17.57809143]
[1688400571141,0.0087452,1963.4,1963.3,15.73365]
[1688400571341,0.0087452,1963.4,1963.3,13.18692]
[1688400571867,0.0087452,1963.4,1963.3,15.73365]
[1688400577930,0.0087452,1963.4,1963.3,5.09346]
[1688400578135,0.0087452,1963.4,1963.2,0.01639726]
[1688400578136,12.75393336,1963.4,1963.1,5.09388]
[1688400578421,14.2839847,1963.4,1963.1,5.09388]
[1688400578791,16.8305847,1963.4,1963.0,8.09409]
[1688400579125,16.8305847,1963.4,1963.0,13.18822]
[1688400579483,2.55878816,1963.1,1962.4,2.038]
[1688400579684,12.7363,1962.9,1962.4,5.09564]
[1688400580021,12.74782816,1962.9,1962.4,12.7392]
[1688400580779,12.75657336,1962.9,1962.4,12.7392]
[1688400580997,14.2869437,1962.9,1962.4,12.7392]
[1688400581225,2.56422736,1962.8,1962.4,5.09564]
[1688400581394,2.56422736,1962.8,1962.4,5.09579]
[1688400581395,10.19014,1962.7,1962.4,5.09579]
[1688400581597,2.55878816,1962.6,1962.2,0.40879258]
[1688400581785,10.19118,1962.5,1962.2,5.50501258]
[1688400581984,10.19118,1962.5,1962.2,5.09622]
[1688400582187,2.55878816,1962.4,1962.1,5.09644]
[1688400582398,10.19212,1962.3,1961.8,5.22733595]
[1688400582593,2.55878816,1962.2,1961.6,5.09772]
[1688400582809,12.7473892,1962.1,1961.6,10.19559]
[1688400583028,2.55878816,1962.0,1961.3,10.19705]
[1688400583228,12.74345,1961.8,1961.3,10.32422023]
[1688400583437,2.55878816,1961.7,1961.3,5.22569023]
[1688400583640,2.55878816,1961.7,1961.3,5.09852]
[1688400583641,10.19586,1961.6,1961.3,5.09852]
[1688400583938,2.55878816,1961.5,1961.3,5.09852]
[1688400584107,7.65692816,1961.5,1961.3,5.09852]
[1688400584305,7.65692816,1961.5,1961.2,0.40385377]
[1688400584642,7.65692816,1961.5,1961.2,5.09886]
[1688400584643,12.75506816,1961.5,1961.2,5.09886]
[1688400585002,12.75506816,1961.5,1961.1,5.50278212]
[1688400585432,7.65692816,1961.5,1961.1,10.60195212]
[1688400585601,16.83453098,1961.5,1960.8,0.12909193]
[1688400585800,16.83453098,1961.5,1960.9,5.09945]
[1688400586000,16.83453098,1961.5,1960.8,10.19964]
[1688400586001,12.74705,1961.3,1960.8,10.19964]
[1688400586250,15.30583816,1961.3,1960.8,5.09982]
[1688400586716,2.56422736,1961.2,1960.8,5.09982]
[1688400586917,2.56422736,1961.2,1960.7,0.40363596]
[1688400587243,12.74825,1961.1,1960.6,5.10036]
[1688400587541,10.1995,1960.9,1960.6,5.10036]
[1688400587705,10.1995,1960.9,1960.5,10.70710238]
[1688400587900,12.74934,1960.9,1960.5,10.70709238]
[1688400588310,10.1995,1960.9,1960.5,10.70709238]
[1688400588739,10.20042,1960.7,1960.5,0.50588238]
[1688400588901,10.20042,1960.7,1960.5,5.2007]
[1688400589418,10.20042,1960.7,1960.5,0.1]
[1688400589612,5.10021,1960.7,1960.5,5.20062]
[1688400589810,5.10005,1960.8,1960.5,5.20062]
[1688400590062,10.19956,1960.9,1960.6,0.01641902]
[1688400590347,5.09926,1961.1,1960.7,10.20042]
[1688400590558,5.09926,1961.1,1960.7,12.75052]
[1688400590786,5.09854,1961.4,1961.0,12.74853]
[1688400590917,2.55878816,1961.4,1961.0,12.74853]
[1688400591116,2.55878816,1961.3,1961.1,3.0]
[1688400591317,12.75642816,1961.3,1961.1,8.09913]
[1688400591623,12.75642816,1961.3,1961.1,3.0]
[1688400591624,15.30574816,1961.3,1961.1,3.0]
[1688400591954,16.83632298,1961.3,1961.0,3.0]
[1688400592156,15.30574816,1961.3,1961.0,8.09943]
[1688400592756,10.19657,1961.5,1961.0,15.74857]
[1688400592959,5.09825,1961.5,1961.0,15.76498566]
[1688400593534,2.5083,1961.7,1961.1,0.5]
[1688400593846,10.16472816,1961.7,1961.2,15.31261399]
[1688400594021,10.16472816,1961.7,1961.3,3.0]
[1688400594221,10.16472816,1961.7,1961.4,10.19668]
[1688400594450,15.26236816,1961.7,1961.5,3.0]
[1688400594756,5.09813,1961.5,1961.3,5.09855]
[1688400595111,7.65680816,1961.6,1961.3,5.09855]
[1688400595318,2.5083,1961.7,1961.5,10.19626]
[1688400595520,5.09718,1961.9,1961.5,12.74532]
[1688400595718,12.75314816,1961.9,1961.5,12.74532]
[1688400595913,7.65596816,1961.9,1961.5,12.74532]
[1688400596552,12.75305816,1961.9,1961.5,12.74532]
[1688400596854,12.75296816,1961.9,1961.5,12.74532]
[1688400597065,7.65587816,1961.9,1961.5,12.74532]
[1688400597212,12.75296816,1961.9,1961.5,12.74532]
[1688400597653,12.75296816,1961.9,1961.5,10.19626]
[1688400597877,7.65587816,1961.9,1961.5,12.74532]
[1688400598162,7.65632816,1961.8,1961.5,10.19626]
[1688400598718,5.09728,1961.9,1961.5,12.74532]
[1688400598920,2.55878816,1961.9,1961.5,12.74532]
[1688400599324,7.65589816,1961.9,1961.5,12.74532]
[1688400599760,2.55878816,1961.9,1961.5,12.74532]
[1688400599919,5.09665,1962.1,1961.6,3.0]
[1688400600259,2.55878816,1962.0,1961.7,12.74391]
[1688400600464,7.65562816,1962.0,1961.7,12.74391]
[1688400600763,15.30087816,1962.0,1961.6,3.0]
[1688400600983,10.19496,1961.8,1961.4,8.0983]
[1688400601121,7.65654816,1961.7,1961.4,13.19669]
[1688400601318,12.75430816,1961.7,1961.4,5.0983]
[1688400602481,12.75430816,1961.7,1961.0,0.40346781]
[1688400602482,18.09330816,1961.7,1961.0,0.40346781]
[1688400602762,20.64210816,1961.7,1961.0,5.09939]
[1688400602956,10.19684,1961.4,1961.0,10.19869]
[1688400603161,2.55878816,1961.3,1961.0,10.19869]
[1688400603362,7.65755816,1961.3,1961.0,10.19869]
[1688400603753,12.99655816,1961.3,1960.5,0.620062]
[1688400604046,20.64464816,1961.3,1960.7,10.20028]
[1688400604237,10.1986,1961.1,1960.7,10.20028]
[1688400604438,5.09969,1960.9,1960.7,5.10007]
[1688400604641,7.65847816,1960.9,1960.7,5.10007]
[1688400605020,2.55878816,1960.9,1960.7,10.20028]
[1688400605221,5.09972,1960.9,1960.7,6.375121]
[1688400605524,4.4953,1961.5,1960.7,14.525431]
[1688400605525,7.68781,1961.5,1960.7,14.525431]
[1688400605766,7.65718816,1961.4,1960.8,2.61641733]
[1688400606077,7.65718816,1961.4,1960.9,15.74872]
[1688400607643,2.55878816,1961.4,1960.9,15.74872]
[1688400607843,2.55878816,1961.4,1960.9,17.58022073]
[1688400608629,7.65719816,1961.4,1960.9,17.58022073]
[1688400608973,2.55878816,1961.4,1960.9,17.58022073]
[1688400609175,2.5895,1961.5,1960.9,18.08022073]
[1688400610447,7.6877,1961.5,1960.9,18.08022073]
[1688400610653,7.6877,1961.5,1961.0,1.80802207]
[1688400610850,7.6877,1961.5,1961.1,12.7476]
[1688400611054,7.49557521,1961.5,1961.2,3.0]
[1688400611380,7.49557521,1961.5,1961.3,5.09865]
[1688400611539,7.49557521,1961.5,1961.3,10.1973]
[1688400611865,2.39737521,1961.5,1961.3,10.1973]
[1688400612071,5.09817,1961.5,1961.3,5.09865]
[1688400612225,5.09813,1961.5,1961.2,3.0]
[1688400612426,10.19632,1961.5,1961.2,3.0]
[1688400612622,5.09813,1961.5,1961.2,8.09886]
[1688400612833,5.09801,1961.6,1961.2,14.517559]
[1688400613046,5.09819,1961.5,1961.2,14.517559]
[1688400613247,10.19638,1961.5,1961.2,9.418649]
[1688400613494,10.19597,1961.6,1961.2,13.19777]
[1688400613639,6.01658782,1961.9,1961.2,13.19777]
[1688400613640,4.4865,1961.9,1961.2,13.19777]
[1688400613845,2.6067,1961.9,1961.3,0.5]
[1688400614076,2.6067,1961.9,1961.4,17.90704231]
[1688400614077,5.0971,1961.9,1961.4,17.90704231]
[1688400614240,5.097,1962.0,1961.5,4.79070423]
[1688400614444,5.097,1962.0,1961.6,12.74438]
[1688400614684,5.097,1962.0,1961.7,3.0]
[1688400614887,5.0967,1962.1,1961.8,5.09735]
[1688400615059,5.09617,1962.3,1961.8,15.34337]
[1688400615247,5.09617,1962.3,1961.9,4.534337]
[1688400615443,5.09617,1962.3,1962.0,10.2099673]
[1688400615789,7.7113652,1962.4,1962.0,12.7583773]
[1688400615790,0.0087452,1962.4,1962.0,12.7583773]
[1688400616078,0.0087452,1962.4,1962.1,3.0]
[1688400616279,0.0087452,1962.4,1962.2,12.7408]
[1688400616582,0.0087452,1962.4,1962.2,14.31488]
[1688400616954,0.0087452,1962.4,1962.3,13.19212]
[1688400617145,0.0087452,1962.4,1962.3,15.74015]
[1688400617879,5.1045452,1962.4,1962.3,3.0]
[1688400618391,12.7482452,1962.4,1962.3,3.0]
[1688400618544,12.7482452,1962.4,1962.1,3.0]
[1688400618751,12.7482452,1962.4,1962.1,8.0965]
[1688400618944,10.2003452,1962.4,1962.1,13.19308]
[1688400619391,5.1045452,1962.4,1962.1,13.19308]
[1688400619556,5.1045452,1962.4,1962.1,17.315518]
[1688400619557,0.0087452,1962.4,1962.1,17.315518]
[1688400619945,0.0087452,1962.4,1962.2,0.0164056]
[1688400620248,0.0087452,1962.4,1962.3,12.74015]
[1688400621287,0.0087452,1962.4,1962.3,10.19212]
[1688400621798,0.0087452,1962.4,1962.3,5.09606]
[1688400621991,10.2003452,1962.4,1962.1,13.19296]
[1688400622157,10.2003452,1962.4,1962.1,8.09647]
[1688400622684,0.0087452,1962.4,1962.1,15.74134]
[1688400622850,0.0087452,1962.4,1962.3,10.19212]
[1688400623177,0.0087452,1962.4,1962.3,15.74015]
[1688400623489,0.0087452,1962.4,1962.3,15.70815]
[1688400624338,0.0087452,1962.4,1962.3,18.30815]
[1688400624664,0.0087452,1962.4,1962.3,24.12715]
[1688400624974,0.47499878,1962.6,1962.5,15.78662]
[1688400625175,0.47499878,1962.6,1962.5,21.36462]
[1688400625362,0.47499878,1962.6,1962.5,21.84462]
[1688400625574,0.47499878,1962.6,1962.5,21.34462]
[1688400625883,1.02207974,1963.6,1962.5,29.74240816]
[1688400626056,7.65164816,1963.6,1963.1,12.73487]
[1688400626257,7.65164816,1963.6,1963.3,10.18682]
[1688400626258,5.09286,1963.6,1963.3,10.18682]
[1688400626889,5.09271,1963.6,1963.3,12.73355]
[1688400627444,0.0601385,1963.7,1963.4,3.0]
[1688400627647,0.0601385,1963.7,1963.5,12.73235]
[1688400628159,0.0601385,1963.7,1963.5,10.18588]
[1688400628358,0.0601385,1963.7,1963.5,12.73235]
[1688400629950,0.0601385,1963.7,1963.6,3.0]
[1688400630148,0.0601385,1963.7,1963.6,15.7317]
[1688400631065,0.0601385,1963.7,1963.6,15.7480939]
[1688400632408,0.0601385,1963.7,1963.6,15.75372347]
[1688400632609,0.0601385,1963.7,1963.6,16.23372347]
[1688400632813,0.0601385,1963.7,1963.6,26.61264282]
[1688400633321,0.0601385,1963.7,1963.6,21.27364282]
[1688400633547,0.0601385,1963.7,1963.6,20.79364282]
[1688400634047,0.0601385,1963.7,1963.6,21.27364282]
[1688400634352,0.0601385,1963.7,1963.6,21.26801325]
[1688400634853,0.0601385,1963.7,1963.6,26.60701325]
[1688400635349,0.0601385,1963.7,1963.6,29.43354112]
[1688400635766,0.0601385,1963.7,1963.6,15.7317]
[1688400636436,0.0601385,1963.7,1963.6,15.73732145]
[1688400636643,0.0601385,1963.7,1963.6,23.63510961]
[1688400637071,0.0601385,1963.7,1963.6,15.73732145]
[1688400637430,0.0601385,1963.7,1963.6,15.7317]
[1688400638469,0.0601385,1963.7,1963.6,15.73733363]
[1688400638676,0.0601385,1963.7,1963.6,16.21733363]
[1688400639407,0.0601385,1963.7,1963.6,16.23372753]
[1688400639543,0.0601385,1963.7,1963.6,15.75372753]
[1688400639726,0.0601385,1963.7,1963.6,8.11470753]
[1688400640058,0.0601385,1963.7,1963.6,15.75372753]
[1688400640875,0.0601385,1963.7,1963.6,13.20738753]
[1688400641083,12.7911885,1963.7,1963.6,0.00563363]
[1688400641236,14.07030735,1963.7,1963.6,0.00563363]
[1688400641645,6.43167735,1963.7,1963.6,0.00563363]
[1688400641846,14.07030735,1963.7,1963.6,0.00563363]
[1688400642049,16.62909551,1963.7,1963.6,0.00563363]
[1688400642573,16.62909551,1963.7,1963.1,10.58909439]
[1688400642873,2.55878816,1963.6,1963.2,5.0937]
[1688400643079,5.09299,1963.5,1963.2,12.73428]
[1688400643296,10.18598,1963.5,1963.2,11.50098244]
[1688400643480,10.18598,1963.5,1963.2,10.18742]
[1688400643887,10.18598,1963.5,1963.2,5.0937]
[1688400644261,12.73245,1963.5,1963.3,3.0]
[1688400644496,12.73245,1963.5,1963.2,3.0]
[1688400645660,12.73245,1963.5,1963.2,8.09372]
[1688400646261,12.73245,1963.5,1963.2,3.0]
[1688400646463,2.55878816,1963.4,1962.8,5.09462]
[1688400646660,12.73417,1963.3,1962.9,5.09449]